fUSD/lending_fUSD_20250120
["ID","MTS","AMOUNT","RATE_DAILY","PERIOD"]
[349691155,1737377478581,-500.0,0.00021175,2]
[349691156,1737377478591,-500.0,0.00021175,2]
[349691157,1737377478602,-560.53,0.00021175,2]
[349691158,1737377478612,-766.9,0.00021175,2]
[349691159,1737377478622,-500.0,0.00021175,2]
[349691160,1737377478632,-500.0,0.00021175,2]
[349691161,1737377478643,-660.28,0.00021175,2]
[349691162,1737377478652,-943.53,0.00021175,2]
[349691163,1737377478662,-1337.38,0.00021175,2]
[349691164,1737377478672,-771.84,0.00021175,2]
[349691165,1737377478682,-500.0,0.00021175,2]
[349691166,1737377478692,-500.0,0.00021175,2]
[349691167,1737377478702,-1005.87,0.00021175,2]
[349691168,1737377478712,-1060.85,0.00021175,2]
[349691169,1737377478723,-500.0,0.00021175,2]
[349691170,1737377478733,-500.0,0.00021175,2]
[349691171,1737377478743,-980.61,0.00021175,2]
[349691172,1737377478752,-874.79,0.00021175,2]
[349691173,1737377478762,-166.048568,0.00021175,2]
[349691174,1737377478775,-151.0,0.00021175,2]
[349691175,1737377478785,-1402.18,0.00021175,2]
[349691176,1737377478796,-500.0,0.00021175,2]
[349691177,1737377478806,-1129.67,0.00021175,2]
[349691178,1737377478816,-535.06,0.00021175,2]
[349691179,1737377478826,-2752.84,0.00021175,2]
[349691180,1737377478836,-22848.0,0.00021233,2]
[349691181,1737377478846,-4679.0,0.00021233,2]
[349691182,1737377478856,-500.0,0.00021268,2]
[349691183,1737377478867,-504.67565356,0.00021268,2]
[349691184,1737377478887,-502.88233961,0.00021268,2]
[349691185,1737377478903,-500.0,0.00021268,2]
[349691186,1737377478920,-230.99120606,0.00021268,2]
[349691187,1737377478936,-505.60453528,0.00021268,2]
[349691188,1737377478954,-500.0,0.00021268,2]
[349691189,1737377478970,-500.0,0.00021268,2]
[349691190,1737377478983,-500.0,0.00021268,2]
[349691191,1737377479000,-500.0,0.00021268,2]
[349691192,1737377479018,-500.0,0.00021268,2]
[349691193,1737377479041,-501.64243051,0.00021268,2]
[349691194,1737377479058,-301.14753056,0.00021268,2]
[349691195,1737377479075,-502.14893857,0.00021268,2]
[349691196,1737377479091,-500.0,0.00021268,2]
[349691197,1737377479111,-500.0,0.00021268,2]
[349691198,1737377479128,-500.0,0.00021268,2]
[349691199,1737377479142,-500.0,0.00021268,2]
[349691200,1737377479158,-500.0,0.00021268,2]
[349691201,1737377479175,-362.39799688,0.00021268,2]
[349691202,1737377479187,-500.0,0.00021268,2]
[349691203,1737377479204,-500.0,0.00021268,2]
[349691204,1737377479219,-500.0,0.00021268,2]
[349691205,1737377479231,-500.0,0.00021268,2]
[349691206,1737377479246,-501.58656571,0.00021268,2]
[349691207,1737377479261,-500.0,0.00021268,2]
[349691208,1737377479277,-500.0,0.00021268,2]
[349691209,1737377479292,-500.0,0.00021268,2]
[349691210,1737377479306,-500.0,0.00021268,2]
[349691211,1737377479320,-351.211748,0.00021268,2]
[349691212,1737377479335,-500.0,0.00021268,2]
[349691213,1737377479349,-563.53888645,0.00021268,2]
[349691214,1737377479363,-366.54976486,0.00021268,2]
[349691215,1737377479377,-500.0,0.00021268,2]
[349691216,1737377479392,-500.0,0.00021268,2]
[349691217,1737377479406,-501.34515397,0.00021268,2]
[349691218,1737377479420,-500.0,0.00021268,2]
[349691219,1737377479434,-500.0,0.00021268,2]
[349691220,1737377479447,-500.0,0.00021268,2]
[349691221,1737377479462,-500.0,0.00021268,2]
[349691222,1737377479477,-1239.02,0.00021268,2]
[349691223,1737377479491,-796.29,0.00021268,2]
[349691224,1737377479504,-500.0,0.00021268,2]
[349691225,1737377479518,-500.0,0.00021268,2]
[349691226,1737377479535,-777.37,0.00021268,2]
[349691227,1737377479549,-500.0,0.00021268,2]
[349691228,1737377479564,-1097.39,0.00021268,2]
[349691229,1737377479578,-500.0,0.00021268,2]
[349691230,1737377479591,-500.0,0.00021268,2]
[349691231,1737377479605,-983.96,0.00021268,2]
[349691232,1737377479619,-1933.71,0.00021268,2]
[349691233,1737377479634,-1142.21,0.00021268,2]
[349691234,1737377479648,-7842.41690614,0.00021273,2]
[349691235,1737377479662,-204.71864207,0.00021285,2]
[349691236,1737377479676,-1340.5827597,0.0002129,2]
[349691237,1737377479690,-529.25,0.00021299,2]
[349691238,1737377479704,-2600.0,0.000213,7]
[349691239,1737377479718,-1269.0,0.00021349,2]
[349691240,1737377479732,-2017.0,0.00021349,2]
[349691241,1737377479745,-262.705,0.00021349,2]
[349691242,1737377479759,-567.0,0.00021349,2]
[349691243,1737377479776,-635.0,0.00021349,2]
[349691244,1737377479789,-1863.0,0.00021349,2]
[349691245,1737377479802,-1261.0,0.00021349,2]
[349691246,1737377479816,-3044.783,0.00021349,2]
[349691247,1737377479829,-907.0,0.00021349,2]
[349691248,1737377479842,-859.0,0.00021349,2]
[349691249,1737377479854,-150.0,0.00021349,2]
[349691250,1737377479866,-537.0,0.00021349,2]
[349691251,1737377479879,-3983.0,0.00021349,2]
[349691252,1737377479891,-250.0,0.00021349,2]
[349691253,1737377479904,-168.0,0.00021349,2]
[349691254,1737377479916,-150.0,0.00021349,2]
[349691255,1737377479928,-158.601,0.00021349,2]
[349691256,1737377479941,-3900.0,0.00021349,2]
[349691257,1737377479953,-150.448,0.00021349,2]
[349691258,1737377479965,-278.547,0.00021349,2]
[349691259,1737377479977,-1105.0,0.00021349,2]
[349691260,1737377479989,-500.0,0.00021369,2]
[349691261,1737377480001,-546.17,0.00021369,2]
[349691262,1737377480013,-500.0,0.00021369,2]
[349691263,1737377480032,-500.0,0.00021369,2]
[349691264,1737377480044,-500.0,0.00021369,2]
[349691265,1737377480058,-500.0,0.00021369,2]
[349691266,1737377480069,-500.0,0.00021369,2]
[349691267,1737377480082,-796.95,0.00021369,2]
[349691268,1737377480094,-500.0,0.00021369,2]
[349691269,1737377480109,-500.0,0.00021369,2]
[349691270,1737377480122,-500.0,0.00021369,2]
[349691271,1737377480135,-622.67,0.00021369,2]
[349691272,1737377480148,-500.0,0.00021369,2]
[349691273,1737377480162,-500.0,0.00021369,2]
[349691274,1737377480175,-216.45644759,0.00021369,2]
[349691275,1737377480187,-500.0,0.00021369,2]
[349691276,1737377480200,-500.0,0.00021369,2]
[349691277,1737377480213,-500.0,0.00021369,2]
[349691278,1737377480225,-638.44,0.00021369,2]
[349691279,1737377480238,-500.0,0.00021369,2]
[349691280,1737377480251,-500.0,0.00021369,2]
[349691281,1737377480263,-500.0,0.00021369,2]
[349691282,1737377480275,-606.47,0.00021369,2]
[349691283,1737377480288,-180.3633288,0.00021369,2]
[349691284,1737377480301,-754.5,0.00021369,2]
[349691285,1737377480313,-526.69,0.00021369,2]
[349691286,1737377480325,-500.0,0.00021369,2]
[349691287,1737377480338,-500.0,0.00021369,2]
[349691288,1737377480351,-500.0,0.00021369,2]
[349691289,1737377480363,-500.0,0.00021369,2]
[349691290,1737377480571,-686.68,0.00021369,2]
[349691291,1737377480590,-486.6149173,0.00021369,2]
[349691292,1737377480600,-500.0,0.00021369,2]
[349691293,1737377480609,-500.0,0.00021369,2]
[349691294,1737377480618,-500.0,0.00021369,2]
[349691295,1737377480628,-500.0,0.00021369,2]
[349691296,1737377480637,-500.0,0.00021369,2]
[349691297,1737377480646,-500.0,0.00021369,2]
[349691298,1737377480655,-837.57,0.00021369,2]
[349691299,1737377480664,-500.0,0.00021369,2]
[349691300,1737377480673,-500.0,0.00021369,2]
[349691301,1737377480682,-500.0,0.00021369,2]
[349691302,1737377480692,-202.66,0.00021369,2]
[349691303,1737377480701,-895.09,0.00021369,2]
[349691304,1737377480710,-1166.48,0.00021369,2]
[349691305,1737377480719,-992.96,0.00021369,2]
[349691306,1737377480729,-500.0,0.00021369,2]
[349691307,1737377480738,-500.0,0.00021369,2]
[349691308,1737377480747,-1201.46,0.00021369,2]
[349691309,1737377480757,-500.0,0.00021369,2]
[349691310,1737377480766,-159.82,0.00021369,2]
[349691311,1737377480777,-500.0,0.00021369,2]
[349691312,1737377480786,-533.19,0.00021369,2]
[349691313,1737377480795,-500.0,0.00021369,2]
[349691314,1737377480805,-500.0,0.00021369,2]
[349691315,1737377480814,-500.0,0.00021369,2]
[349691316,1737377480823,-500.0,0.00021369,2]
[349691317,1737377480832,-1289.76,0.00021369,2]
[349691318,1737377480844,-743.97,0.00021369,2]
[349691319,1737377480853,-500.0,0.00021369,2]
[349691320,1737377480863,-500.0,0.00021369,2]
[349691321,1737377480872,-500.0,0.00021369,2]
[349691322,1737377480882,-771.55,0.00021369,2]
[349691323,1737377480891,-1230.0,0.00021369,2]
[349691324,1737377480900,-500.0,0.00021369,2]
[349691325,1737377480909,-500.0,0.00021369,2]
[349691326,1737377480919,-500.0,0.00021369,2]
[349691327,1737377480928,-473.34814452,0.00021369,2]
[349691328,1737377480937,-500.0,0.00021369,2]
[349691329,1737377480947,-500.0,0.00021369,2]
[349691330,1737377480956,-500.0,0.00021369,2]
[349691331,1737377480966,-500.0,0.00021369,2]
[349691332,1737377480975,-500.0,0.00021369,2]
[349691333,1737377480984,-500.0,0.00021369,2]
[349691334,1737377480994,-500.0,0.00021369,2]
[349691335,1737377481003,-500.0,0.00021369,2]
[349691336,1737377481012,-500.0,0.00021369,2]
[349691337,1737377481022,-1612.66,0.00021369,2]
[349691338,1737377481036,-500.0,0.00021369,2]
[349691339,1737377481045,-536.54,0.00021369,2]
[349691340,1737377481053,-3644.75,0.00021369,2]
[349691341,1737377481063,-500.0,0.00021369,2]
[349691342,1737377481073,-500.0,0.00021369,2]
[349691343,1737377481082,-626.19,0.00021369,2]
[349691344,1737377481091,-500.0,0.00021369,2]
[349691345,1737377481101,-756.469785,0.00021369,2]
[349691346,1737377481111,-500.0,0.00021369,2]
[349691347,1737377481121,-500.0,0.00021369,2]
[349691348,1737377481130,-1134.53,0.00021369,2]
[349691349,1737377481139,-5822.0,0.00021369,2]
[349691350,1737377481149,-732.04,0.00021369,2]
[349691351,1737377481159,-1092.62,0.00021369,2]
[349691352,1737377481169,-923.97,0.00021369,2]
[349691353,1737377481179,-970.989995,0.00021369,2]
[349691354,1737377481189,-513.63049392,0.00021369,2]
[349691355,1737377481199,-1139.04,0.00021369,2]
[349691356,1737377481208,-159.95642,0.00021369,2]
[349691357,1737377481218,-1401.76,0.00021369,2]
[349691358,1737377481227,-500.0,0.00021369,2]
[349691359,1737377481237,-500.0,0.00021369,2]
[349691360,1737377481246,-518.64308734,0.00021369,2]
[349691361,1737377481256,-2199.52,0.00021369,2]
[349691362,1737377481266,-159.458686,0.00021369,2]
[349691363,1737377481278,-1107.27,0.00021369,2]
[349691364,1737377481288,-500.0,0.00021369,2]
[349691365,1737377481298,-500.0,0.00021369,2]
[349691366,1737377481307,-1073.92,0.00021369,2]
[349691367,1737377481318,-574.83,0.00021369,2]
[349691368,1737377481327,-500.0,0.00021369,2]
[349691369,1737377481337,-3230.06,0.00021369,2]
[349691370,1737377481347,-500.0,0.00021369,2]
[349691371,1737377481357,-182.466381,0.00021369,2]
[349691372,1737377481366,-354.71300553,0.00021369,2]
[349691373,1737377481376,-500.0,0.00021369,2]
[349691374,1737377481386,-952.22,0.00021369,2]
[349691375,1737377481395,-582.05,0.00021369,2]
[349691376,1737377481404,-3658.7,0.00021369,2]
[349691377,1737377481413,-1103.21,0.00021369,2]
[349691378,1737377481422,-1237.78,0.00021369,2]
[349691379,1737377481432,-500.0,0.00021369,2]
[349691380,1737377481441,-993.94,0.00021369,2]
[349691381,1737377481451,-1503.85,0.00021369,2]
[349691382,1737377481460,-1228.19,0.00021369,2]
[349691383,1737377481470,-639.92,0.00021369,2]
[349691384,1737377481479,-1377.98,0.00021369,2]
[349691385,1737377481489,-500.0,0.00021369,2]
[349691386,1737377481499,-153.236796,0.00021369,2]
[349691387,1737377481509,-530.1,0.00021369,2]
[349691388,1737377481519,-500.0,0.00021369,2]
[349691389,1737377481531,-1560.84,0.00021369,2]
[349691390,1737377481540,-500.0,0.00021369,2]
[349691391,1737377481550,-151.0,0.00021369,2]
[349691392,1737377481559,-752.57,0.00021369,2]
[349691393,1737377481569,-1797.36,0.00021369,2]
[349691394,1737377481579,-3077.66,0.00021369,2]
[349691395,1737377481588,-876.3,0.00021369,2]
[349691396,1737377481598,-714.91,0.00021369,2]
[349691397,1737377481608,-1303.67,0.00021369,2]
[349691398,1737377481618,-876.98,0.00021369,2]
[349691399,1737377481628,-2597.81,0.00021369,2]
[349691400,1737377481638,-1827.08,0.00021369,2]
[349691401,1737377481648,-1615.3,0.00021369,2]
[349691402,1737377481657,-500.0,0.00021369,2]
[349691403,1737377481667,-2483.31,0.00021369,2]
[349691404,1737377481677,-2780.47,0.00021369,2]
[349691405,1737377481686,-151.0,0.00021369,2]
[349691406,1737377481696,-500.0,0.00021369,2]
[349691407,1737377481706,-3105.24,0.00021369,2]
[349691408,1737377481715,-151.0,0.00021369,2]
[349691409,1737377481725,-151.0,0.00021369,2]
[349691410,1737377481735,-1130.17,0.00021369,2]
[349691411,1737377481744,-1288.7,0.00021369,2]
[349691412,1737377481753,-647.49,0.00021369,2]
[349691413,1737377481763,-3353.58,0.00021369,2]
[349691414,1737377481772,-1811.0,0.00021369,2]
[349691415,1737377481784,-1109.6,0.00021369,2]
[349691416,1737377481794,-500.0,0.00021369,2]
[349691417,1737377481803,-500.0,0.00021369,2]
[349691418,1737377481813,-751.49,0.00021369,2]
[349691419,1737377481822,-944.91,0.00021369,2]
[349691420,1737377481832,-500.0,0.00021369,2]
[349691421,1737377481842,-899.05,0.00021369,2]
[349691422,1737377481851,-3103.59,0.00021369,2]
[349691423,1737377481860,-1871.8,0.00021369,2]
[349691424,1737377481870,-1086.25,0.00021369,2]
[349691425,1737377481879,-2312.31,0.00021369,2]
[349691426,1737377481889,-196.365606,0.00021369,2]
[349691427,1737377481899,-3725.5,0.00021369,2]
[349691428,1737377481909,-500.0,0.00021369,2]
[349691429,1737377481919,-435.0118188,0.00021369,2]
[349691430,1737377481929,-1721.32,0.00021369,2]
[349691431,1737377481939,-3500.19,0.00021369,2]
[349691432,1737377481948,-1374.5,0.00021369,2]
[349691433,1737377481958,-500.0,0.00021369,2]
[349691434,1737377481968,-151.0,0.00021369,2]
[349691435,1737377481978,-1285.87,0.00021369,2]
[349691436,1737377481988,-1008.2,0.00021369,2]
[349691437,1737377481998,-500.0,0.00021369,2]
[349691438,1737377482007,-500.0,0.00021369,2]
[349691439,1737377482017,-572.39,0.00021369,2]
[349691440,1737377482031,-1238.99,0.00021369,2]
[349691441,1737377482040,-500.0,0.00021369,2]
[349691442,1737377482050,-500.0,0.00021369,2]
[349691443,1737377482059,-500.0,0.00021369,2]
[349691444,1737377482070,-4448.38,0.00021369,2]
[349691445,1737377482079,-500.0,0.00021369,2]
[349691446,1737377482089,-500.0,0.00021369,2]
[349691447,1737377482099,-1222.11,0.00021369,2]
[349691448,1737377482108,-936.38,0.00021369,2]
[349691449,1737377482118,-500.0,0.00021369,2]
[349691450,1737377482128,-1024.64,0.00021369,2]
[349691451,1737377482137,-500.0,0.00021369,2]
[349691452,1737377482149,-4455.07,0.00021369,2]
[349691453,1737377482158,-634.84,0.00021369,2]
[349691454,1737377482168,-500.0,0.00021369,2]
[349691455,1737377482178,-500.0,0.00021369,2]
[349691456,1737377482188,-500.0,0.00021369,2]
[349691457,1737377482197,-1718.2,0.00021369,2]
[349691458,1737377482207,-1517.42,0.00021369,2]
[349691459,1737377482216,-500.0,0.00021369,2]
[349691460,1737377482225,-500.0,0.00021369,2]
[349691461,1737377482235,-500.0,0.00021369,2]
[349691462,1737377482244,-881.03,0.00021369,2]
[349691463,1737377482253,-500.0,0.00021369,2]
[349691464,1737377482263,-150.0,0.0002137,4]
[349691465,1737377482273,-150.0,0.0002137,4]
[349691466,1737377482287,-150.0,0.0002137,4]
[349691467,1737377482296,-500.0,0.00021394,2]
[349691468,1737377482306,-500.0,0.00021394,2]
[349691469,1737377482315,-500.0,0.00021394,2]
[349691470,1737377482325,-500.0,0.00021394,2]
[349691471,1737377482334,-500.0,0.00021394,2]
[349691472,1737377482343,-500.0,0.00021394,2]
[349691473,1737377482353,-500.0,0.00021394,2]
[349691474,1737377482363,-500.0,0.00021394,2]
[349691475,1737377482372,-500.0,0.00021394,2]
[349691476,1737377482381,-500.0,0.00021394,2]
[349691477,1737377482391,-500.0,0.00021394,2]
[349691478,1737377482400,-500.0,0.00021394,2]
[349691479,1737377482409,-501.78,0.00021394,2]
[349691480,1737377482418,-495.75148817,0.00021394,2]
[349691481,1737377482427,-500.0,0.00021394,2]
[349691482,1737377482436,-500.0,0.00021394,2]
[349691483,1737377482446,-500.0,0.00021394,2]
[349691484,1737377482455,-500.0,0.00021394,2]
[349691485,1737377482464,-500.0,0.00021394,2]
[349691486,1737377482474,-500.0,0.00021394,2]
[349691487,1737377482483,-500.0,0.000214,7]
[349691488,1737377482493,-204.71864207,0.00021438,2]
[349691489,1737377482502,-535.35607034,0.00021439,2]
[349691490,1737377482511,-500.0,0.00021449,2]
[349691491,1737377482520,-500.0,0.00021449,2]
[349691492,1737377482532,-500.0,0.00021449,2]
[349691493,1737377482542,-505.86,0.00021449,2]
[349691494,1737377482551,-725.93,0.00021449,2]
[349691495,1737377482561,-1112.19,0.00021449,2]
[349691496,1737377482570,-500.0,0.00021449,2]
[349691497,1737377482580,-2796.22,0.00021449,2]
[349691498,1737377482589,-500.0,0.00021449,2]
[349691499,1737377482599,-500.0,0.00021449,2]
[349691500,1737377482608,-500.0,0.00021449,2]
[349691501,1737377482617,-500.0,0.00021449,2]
[349691502,1737377482626,-860.7,0.00021449,2]
[349691503,1737377482635,-746.27,0.00021449,2]
[349691504,1737377482644,-500.0,0.00021449,2]
[349691505,1737377482654,-500.0,0.00021449,2]
[349691506,1737377482663,-656.76,0.00021449,2]
[349691507,1737377482672,-500.0,0.00021449,2]
[349691508,1737377482682,-500.0,0.00021449,2]
[349691509,1737377482691,-394.56,0.00021449,2]
[349691510,1737377482700,-844.35,0.00021449,2]
[349691511,1737377482709,-500.0,0.00021449,2]
[349691512,1737377482719,-500.0,0.00021449,2]
[349691513,1737377482727,-500.0,0.00021449,2]
[349691514,1737377482737,-554.98,0.00021449,2]
[349691515,1737377482746,-706.13,0.00021449,2]
[349691516,1737377482755,-500.0,0.00021449,2]
[349691517,1737377482764,-500.0,0.00021449,2]
[349691518,1737377482774,-700.5,0.00021449,2]
[349691519,1737377482785,-817.82,0.00021449,2]
[349691520,1737377482794,-500.0,0.00021449,2]
[349691521,1737377482804,-840.73,0.00021449,2]
[349691522,1737377482813,-978.26,0.00021449,2]
[349691523,1737377482822,-807.37,0.00021449,2]
[349691524,1737377482832,-535.23,0.00021449,2]
[349691525,1737377482842,-911.36,0.00021449,2]
[349691526,1737377482851,-918.51,0.00021449,2]
[349691527,1737377482861,-500.0,0.00021449,2]
[349691528,1737377482871,-761.42,0.00021449,2]
[349691529,1737377482880,-500.0,0.00021449,2]
[349691530,1737377483018,-2935.79,0.00021449,2]
[349691531,1737377483032,-500.0,0.00021449,2]
[349691532,1737377483042,-4234.6,0.00021449,2]
[349691533,1737377483051,-766.29,0.00021449,2]
[349691534,1737377483060,-727.87,0.00021449,2]
[349691535,1737377483070,-3864.35,0.00021449,2]
[349691536,1737377483080,-500.0,0.00021449,2]
[349691537,1737377483090,-500.0,0.00021449,2]
[349691538,1737377483099,-1299.27,0.00021449,2]
[349691539,1737377483111,-3588.13,0.00021449,2]
[349691540,1737377483121,-151.0,0.00021449,2]
[349691541,1737377483131,-2046.38,0.00021449,2]
[349691542,1737377483141,-1932.2,0.00021449,2]
[349691543,1737377483151,-576.23,0.00021449,2]
[349691544,1737377483161,-1757.51,0.00021449,2]
[349691545,1737377483171,-151.0,0.00021449,2]
[349691546,1737377483181,-151.0,0.00021449,2]
[349691547,1737377483191,-151.0,0.00021449,2]
[349691548,1737377483201,-1791.29,0.00021449,2]
[349691549,1737377483211,-2156.53,0.00021449,2]
[349691550,1737377483220,-151.0,0.00021449,2]
[349691551,1737377483230,-2141.05,0.00021449,2]
[349691552,1737377483239,-1660.42,0.00021449,2]
[349691553,1737377483249,-1133.61,0.00021449,2]
[349691554,1737377483258,-555.92,0.00021449,2]
[349691555,1737377483267,-237.120185,0.00021449,2]
[349691556,1737377483279,-2180.96,0.00021449,2]
[349691557,1737377483290,-645.51,0.00021449,2]
[349691558,1737377483299,-561.67,0.00021449,2]
[349691559,1737377483308,-2173.11,0.00021449,2]
[349691560,1737377483317,-500.0,0.00021449,2]
[349691561,1737377483327,-1564.48,0.00021449,2]
[349691562,1737377483336,-500.0,0.00021449,2]
[349691563,1737377483347,-1133.54,0.00021449,2]
[349691564,1737377483358,-1145.98,0.00021449,2]
[349691565,1737377483367,-500.0,0.00021449,2]
[349691566,1737377483377,-752.83,0.00021449,2]
[349691567,1737377483387,-500.0,0.00021449,2]
[349691568,1737377483396,-500.0,0.00021449,2]
[349691569,1737377483405,-560.53,0.00021449,2]
[349691570,1737377483414,-766.9,0.00021449,2]
[349691571,1737377483423,-500.0,0.00021449,2]
[349691572,1737377483432,-500.0,0.00021449,2]
[349691573,1737377483441,-660.28,0.00021449,2]
[349691574,1737377483452,-943.53,0.00021449,2]
[349691575,1737377483462,-1337.38,0.00021449,2]
[349691576,1737377483471,-771.84,0.00021449,2]
[349691577,1737377483481,-500.0,0.00021449,2]
[349691578,1737377483492,-500.0,0.00021449,2]
[349691579,1737377483502,-1005.87,0.00021449,2]
[349691580,1737377483511,-1060.85,0.00021449,2]
[349691581,1737377483520,-500.0,0.00021449,2]
[349691582,1737377483535,-500.0,0.00021449,2]
[349691583,1737377483544,-980.61,0.00021449,2]
[349691584,1737377483554,-874.79,0.00021449,2]
[349691585,1737377483564,-1402.18,0.00021449,2]
[349691586,1737377483574,-500.0,0.00021449,2]
[349691587,1737377483584,-1129.67,0.00021449,2]
[349691588,1737377483594,-535.06,0.00021449,2]
[349691589,1737377483604,-2752.84,0.00021449,2]
[349691590,1737377483614,-500.0,0.00021452,2]
[349691591,1737377483623,-150.0,0.00021472,4]
[349691592,1737377483633,-500.0,0.000215,7]
[349691593,1737377483643,-506.24799734,0.00021521,2]
[349691594,1737377483652,-500.0,0.00021542,2]
[349691595,1737377483661,-500.0,0.00021542,2]
[349691596,1737377483671,-500.0,0.00021542,2]
[349691597,1737377483681,-511.51017115,0.00021542,2]
[349691598,1737377483690,-334.01453175,0.00021542,2]
[349691599,1737377483699,-158.64549848,0.00021542,2]
[349691600,1737377483708,-509.54999404,0.00021542,2]
[349691601,1737377483718,-500.0,0.00021542,2]
[349691602,1737377483728,-500.0,0.00021542,2]
[349691603,1737377483736,-508.71238621,0.00021542,2]
[349691604,1737377483746,-500.0,0.00021542,2]
[349691605,1737377483755,-633.78268569,0.00021542,2]
[349691606,1737377483764,-502.56509364,0.00021542,2]
[349691607,1737377483774,-500.0,0.00021542,2]
[349691608,1737377483787,-500.0,0.00021542,2]
[349691609,1737377483797,-1239.02,0.00021542,2]
[349691610,1737377483806,-796.29,0.00021542,2]
[349691611,1737377483815,-500.0,0.00021542,2]
[349691612,1737377483824,-500.0,0.00021542,2]
[349691613,1737377483833,-777.37,0.00021542,2]
[349691614,1737377483843,-500.0,0.00021542,2]
[349691615,1737377483853,-1097.39,0.00021542,2]
[349691616,1737377483862,-500.0,0.00021542,2]
[349691617,1737377483871,-500.0,0.00021542,2]
[349691618,1737377483881,-983.96,0.00021542,2]
[349691619,1737377483890,-1933.71,0.00021542,2]
[349691620,1737377483900,-1142.21,0.00021542,2]
[349691621,1737377483910,-733.0,0.00021544,2]
[349691622,1737377483919,-166.0,0.00021546,2]
[349691623,1737377483929,-417.0889071,0.0002156,2]
[349691624,1737377483938,-150.0,0.00021574,4]
[349691625,1737377483947,-1778.55447242,0.00021589,2]
[349691626,1737377483957,-204.71864207,0.00021592,2]
[349691627,1737377483967,-1340.5827597,0.00021595,2]
[349691628,1737377483976,-500.0,0.000216,7]
[349691629,1737377483986,-500.0,0.00021643,2]
[349691630,1737377483995,-546.17,0.00021643,2]
[349691631,1737377484004,-500.0,0.00021643,2]
[349691632,1737377484014,-500.0,0.00021643,2]
[349691633,1737377484024,-512.26347341,0.00021643,2]
[349691634,1737377484037,-500.0,0.00021643,2]
[349691635,1737377484046,-500.0,0.00021643,2]
[349691636,1737377484055,-796.95,0.00021643,2]
[349691637,1737377484065,-275.89316069,0.00021643,2]
[349691638,1737377484076,-500.0,0.00021643,2]
[349691639,1737377484086,-500.0,0.00021643,2]
[349691640,1737377484095,-622.67,0.00021643,2]
[349691641,1737377484104,-500.0,0.00021643,2]
[349691642,1737377484114,-500.0,0.00021643,2]
[349691643,1737377484123,-500.0,0.00021643,2]
[349691644,1737377484133,-500.0,0.00021643,2]
[349691645,1737377484142,-500.0,0.00021643,2]
[349691646,1737377484152,-638.44,0.00021643,2]
[349691647,1737377484161,-500.0,0.00021643,2]
[349691648,1737377484171,-500.0,0.00021643,2]
[349691649,1737377484180,-500.0,0.00021643,2]
[349691650,1737377484190,-606.47,0.00021643,2]
[349691651,1737377484200,-754.5,0.00021643,2]
[349691652,1737377484209,-526.69,0.00021643,2]
[349691653,1737377484218,-500.0,0.00021643,2]
[349691654,1737377484227,-500.0,0.00021643,2]